fUST/lending_fUST_20250604
["ID","MTS","AMOUNT","RATE_DAILY","PERIOD"]
[364105839,1749003039994,-440.5370588,0.00017241,2]
[364105841,1749003040003,-440.0,0.00017241,2]
[364105843,1749003040013,-440.93682988,0.00017241,2]
[364105845,1749003040023,-440.4221168,0.00017241,2]
[364105847,1749003040032,-440.0,0.00017241,2]
[364105849,1749003040042,-442.73876763,0.00017241,2]
[364105851,1749003040051,-443.0692736,0.00017241,2]
[364105853,1749003040060,-353.39148197,0.00017241,2]
[364105855,1749003040070,-440.0,0.00017241,2]
[364105857,1749003040079,-440.0,0.00017241,2]
[364105859,1749003040088,-440.79635233,0.00017241,2]
[364105861,1749003040098,-440.0,0.00017241,2]
[364105863,1749003040108,-199.71309002,0.00017241,2]
[364105865,1749003040117,-440.0,0.00017241,2]
[364105867,1749003040127,-444.02245315,0.00017241,2]
[364105869,1749003040136,-505.62397872,0.00017241,2]
[364105871,1749003040147,-403.92391119,0.00017241,2]
[364105873,1749003040156,-440.48647356,0.00017241,2]
[364105875,1749003040166,-441.10220689,0.00017241,2]
[364105877,1749003040176,-449.93233988,0.00017241,2]
[364105879,1749003040193,-445.22705903,0.00017241,2]
[364105881,1749003040208,-449.86875441,0.00017241,2]
[364105883,1749003040220,-588.47147764,0.00017241,2]
[364105884,1749003040229,-440.3167818,0.00017241,2]
[364105885,1749003040239,-443.46052354,0.00017241,2]
[364105886,1749003040248,-503.09679868,0.00017241,2]
[364105887,1749003040258,-431.7982496,0.00017241,2]
[364105888,1749003040268,-432.97502321,0.00017241,2]
[364105889,1749003040277,-440.0,0.00017241,2]
[364105890,1749003040287,-440.0,0.00017241,2]
[364105891,1749003040296,-440.96682637,0.00017241,2]
[364105892,1749003040306,-440.43931324,0.00017241,2]
[364105893,1749003040316,-443.8251541,0.00017241,2]
[364105894,1749003040325,-440.0,0.00017241,2]
[364105895,1749003040335,-440.85801332,0.00017241,2]
[364105896,1749003040344,-440.0,0.00017241,2]
[364105897,1749003040355,-440.0,0.00017241,2]
[364105898,1749003040364,-442.50966734,0.00017241,2]
[364105899,1749003040375,-440.0,0.00017241,2]
[364105900,1749003040384,-440.0,0.00017241,2]
[364105901,1749003040394,-431.89425798,0.00017241,2]
[364105902,1749003040404,-432.85651395,0.00017241,2]
[364105903,1749003040414,-443.03324262,0.00017241,2]
[364105904,1749003040424,-569.6748547,0.00017241,2]
[364105905,1749003040434,-440.54695167,0.00017241,2]
[364105906,1749003040444,-441.32488299,0.00017241,2]
[364105907,1749003040453,-440.51336453,0.00017241,2]
[364105908,1749003040468,-441.69572894,0.00017241,2]
[364105909,1749003040478,-442.78407016,0.00017241,2]
[364105910,1749003040488,-440.4459311,0.00017241,2]
[364105912,1749003040498,-431.10097417,0.00017241,2]
[364105913,1749003040509,-443.24374911,0.00017241,2]
[364105914,1749003040518,-440.0,0.00017241,2]
[364105916,1749003040527,-440.72484633,0.00017241,2]
[364105918,1749003040539,-440.0,0.00017241,2]
[364105920,1749003040549,-444.28584792,0.00017241,2]
[364105922,1749003040558,-445.61669218,0.00017241,2]
[364105924,1749003040567,-546.58295513,0.00017241,2]
[364105926,1749003040577,-444.95814676,0.00017241,2]
[364105928,1749003040586,-440.0,0.00017241,2]
[364105930,1749003040596,-500.0,0.00017241,2]
[364105932,1749003040605,-430.0,0.00017241,2]
[364105934,1749003040615,-430.0,0.00017241,2]
[364105936,1749003040624,-430.0,0.00017241,2]
[364105938,1749003040634,-430.0,0.00017241,2]
[364105940,1749003040643,-295.4318861,0.00017241,2]
[364105942,1749003040653,-440.0,0.0001726,2]
[364105944,1749003040663,-440.0,0.00017513,2]
[364105946,1749003040673,-440.0,0.00017514,2]
[364105948,1749003040683,-440.0,0.00017514,2]
[364105950,1749003040692,-430.4580242,0.00017515,2]
[364105952,1749003040702,-430.65324588,0.00017515,2]
[364105953,1749003040713,-496.84731627,0.00017515,2]
[364105954,1749003040723,-402.98247575,0.00017515,2]
[364105956,1749003040733,-401.29817458,0.00017515,2]
[364105958,1749003040742,-440.0,0.00017534,2]
[364105960,1749003040752,-219.74042264,0.00017602,2]
[364105962,1749003040762,-500.0,0.00017788,2]
[364105964,1749003040772,-500.0,0.00017788,2]
[364105966,1749003040781,-526.35973813,0.00017788,2]
[364105968,1749003040791,-440.0,0.00017808,2]
[364105970,1749003040800,-578.97384467,0.000179,2]
[364105971,1749003040809,-969.3688342,0.00017915,2]
[364105973,1749003040819,-500.0,0.00017931,2]
[364105974,1749003040828,-500.0,0.00017931,2]
[364105976,1749003040837,-440.0,0.00018082,2]
[364105978,1749003040847,-578.97384459,0.00018141,2]
[364105979,1749003040857,-440.0,0.00018356,2]
[364105980,1749003040866,-625.61,0.0001838,2]
[364105981,1749003040875,-578.97384459,0.00018383,2]
[364105982,1749003040885,-578.97384459,0.00018624,2]
[364105983,1749003040894,-440.0,0.0001863,2]
[364105984,1749003040904,-500.0,0.00018826,2]
[364105985,1749003040913,-500.0,0.00018826,2]
[364105986,1749003040923,-764.04,0.00018839,3]
[364105987,1749003040932,-423.69433488,0.00018849,2]
[364105988,1749003040943,-160.0,0.00018849,2]
[364105989,1749003040952,-12672.94222187,0.00018849,2]
[364105990,1749003040963,-160.0,0.00018849,2]
[364105991,1749003040972,-160.0,0.00018849,2]
[364105992,1749003040982,-229.45591648,0.00018849,2]
[364105993,1749003040991,-160.0,0.00018849,2]
[364105994,1749003041000,-212.90465545,0.00018849,2]
[364105995,1749003041010,-842.5625,0.00018849,2]
[364105996,1749003041019,-578.97384459,0.00018866,2]
[364105997,1749003041029,-625.61,0.00019106,2]
[364105998,1749003041038,-578.97384459,0.00019107,2]
[364105999,1749003041048,-578.97384459,0.00019348,2]
[364106000,1749003041058,-578.97384459,0.0001959,2]
[364106001,1749003041067,-179.432,0.00019788,2]
[364106002,1749003041077,-578.97384459,0.00019831,2]
[364106003,1749003041086,-578.97384459,0.00020072,2]
[364106004,1749003041096,-275.8395,0.00020187,2]
[364106005,1749003041107,-578.97384459,0.00020314,3]
[364106006,1749003041116,-254.67,0.00020321,3]
[364106007,1749003041126,-800.0,0.00020331,2]
[364106008,1749003041135,-500.0,0.00020547,2]
[364106009,1749003041145,-578.97384459,0.00020555,3]
[364106010,1749003041155,-847.43,0.000206,2]
[364106011,1749003041165,-578.97384459,0.00020797,4]
[364106012,1749003041175,-521.135884,0.00020999,2]
[364106013,1749003041185,-500.0,0.00020999,2]
[364106014,1749003041194,-3000.0,0.00021,2]
[364106015,1749003041204,-3000.0,0.0002101,2]
[364106016,1749003041215,-625.61,0.00021019,2]
[364106017,1749003041224,-3000.0,0.0002102,2]
[364106018,1749003041234,-3000.0,0.0002103,2]
[364106019,1749003041244,-578.97384459,0.00021038,4]
[364106020,1749003041253,-3000.0,0.0002104,2]
[364106021,1749003041263,-3000.0,0.0002105,2]
[364106022,1749003041272,-3000.0,0.0002106,2]
[364106023,1749003041283,-533.73596924,0.00021069,2]
[364106024,1749003041293,-3000.0,0.0002107,2]
[364106025,1749003041303,-625.61,0.00021079,2]
[364106026,1749003041315,-3000.0,0.0002108,2]
[364106027,1749003041327,-3000.0,0.0002109,2]
[364106028,1749003041338,-3000.0,0.000211,2]
[364106029,1749003041350,-3000.0,0.0002111,2]
[364106030,1749003041360,-3000.0,0.0002112,2]
[364106031,1749003041370,-3000.0,0.0002113,2]
[364106032,1749003041379,-625.61,0.00021139,2]
[364106033,1749003041389,-3000.0,0.0002114,2]
[364106034,1749003041400,-3608.681761,0.0002115,2]
[364106035,1749003041410,-364.5107659,0.0002126,2]
[364106036,1749003041420,-578.97384459,0.00021279,5]
[364106037,1749003041430,-800.0,0.00021427,2]
[364106038,1749003041439,-1477.26,0.000215,2]
[364106039,1749003041449,-578.97384459,0.00021521,5]
[364106040,1749003041461,-158.5442955,0.00021671,2]
[364106041,1749003041474,-176.5641048,0.00021671,2]
[364106042,1749003041483,-572.6068135,0.00021671,2]
[364106043,1749003041493,-509.34,0.00021691,3]
[364106044,1749003041503,-578.97384459,0.00021762,5]
[364106045,1749003041514,-847.43,0.000218,2]
[364106046,1749003041525,-578.97384459,0.00022003,6]
[364106047,1749003041536,-578.97384459,0.00022245,6]
[364106048,1749003041546,-578.97384459,0.00022486,7]
[364106049,1749003041557,-158.5442955,0.00022493,2]
[364106050,1749003041567,-153.0,0.00022493,2]
[364106051,1749003041576,-572.7197194,0.00022493,2]
[364106052,1749003041586,-153.0,0.00022493,2]
[364106053,1749003041598,-300.4979102,0.00022493,2]
[364106054,1749003041609,-572.7197194,0.00022493,2]
[364106055,1749003041620,-153.0,0.00022493,2]
[364106056,1749003041631,-153.0,0.00022493,2]
[364106057,1749003041641,-572.7197194,0.00022493,2]
[364106058,1749003041650,-153.0,0.00022493,2]
[364106059,1749003041660,-1085.1310068,0.00022493,2]
[364106060,1749003041670,-153.0,0.00022493,2]
[364106061,1749003041680,-800.0,0.00022523,2]
[364106062,1749003041689,-347.57055798,0.00022557,2]
[364106063,1749003041699,-578.97384459,0.00022728,7]
[364106064,1749003041708,-207.4,0.00022808,2]
[364106065,1749003041719,-578.97384459,0.00022969,8]
[364106066,1749003041728,-625.61,0.00022999,2]
[364106067,1749003041738,-1477.26,0.00023,7]
[364106068,1749003041748,-151.0,0.000232,9]
[364106069,1749003041758,-578.97384459,0.0002321,8]
[364106070,1749003041767,-2016.52957857,0.00023287,2]
[364106071,1749003041777,-151.0,0.000233,8]
[364106072,1749003041786,-153.0,0.00023315,2]
[364106073,1749003041796,-153.0,0.00023315,2]
[364106074,1749003041806,-153.0,0.00023315,2]
[364106075,1749003041815,-153.0,0.00023315,2]
[364106076,1749003041825,-160.0,0.00023334,3]
[364106077,1749003041834,-847.43,0.000234,7]
[364106078,1749003041844,-578.97384459,0.00023452,9]
[364106079,1749003041853,-151.0,0.000235,6]
[364106080,1749003041863,-13413.27246046,0.00023613,7]
[364106081,1749003041873,-800.0,0.00023619,2]
[364106082,1749003041882,-1756.935471,0.00023648,3]
[364106083,1749003041892,-578.97384459,0.00023693,9]
[364106084,1749003041902,-2011.4134,0.000237,15]
[364106085,1749003041912,-151.632246,0.000238,7]
[364106086,1749003041922,-151.752463,0.000238,7]
[364106087,1749003041932,-220.099117,0.000238,7]
[364106088,1749003042045,-220.099117,0.000238,7]
[364106089,1749003042055,-588.926586,0.000238,7]
[364106090,1749003042065,-588.926586,0.000238,7]
[364106091,1749003042075,-152.155345,0.000238,7]
[364106092,1749003042085,-160.76159,0.000238,7]
[364106093,1749003042095,-160.76159,0.000238,7]
[364106094,1749003042105,-264.716561,0.000238,7]
[364106095,1749003042115,-1336.93,0.000238,2]
[364106096,1749003042125,-151.0,0.000238,10]
[364106097,1749003042134,-88937.57199851,0.00023886,2]
[364106098,1749003042144,-625.61,0.00023899,2]
[364106099,1749003042153,-220.099117,0.000239,7]
[364106100,1749003042163,-220.099117,0.000239,7]
[364106101,1749003042173,-588.926586,0.000239,7]
[364106102,1749003042183,-588.926586,0.000239,7]
[364106103,1749003042193,-151.0,0.000239,8]
[364106104,1749003042202,-1097.382002,0.000239,7]
[364106105,1749003042212,-1097.382002,0.000239,7]
[364106106,1749003042222,-160.76159,0.000239,7]
[364106107,1749003042232,-160.76159,0.000239,7]
[364106108,1749003042242,-151.0,0.000239,9]
[364106109,1749003042251,-400.0,0.00023908,2]
[364106110,1749003042261,-578.97384459,0.00023934,10]
[364106111,1749003042270,-800.0,0.00023984,2]
[364106112,1749003042281,-174846.75496971,0.00023999,2]
[364106113,1749003042291,-514.01,0.00023999,2]
[364106114,1749003042301,-625.61,0.00023999,2]
[364106115,1749003042311,-625.61,0.00023999,2]
[364106116,1749003042320,-625.61,0.00023999,2]
[364106117,1749003042330,-625.61,0.00023999,2]
[364106118,1749003042340,-625.61,0.00023999,2]
[364106119,1749003042349,-625.61,0.00023999,2]
[364106120,1749003042359,-625.61,0.00023999,2]
[364106121,1749003042369,-625.61,0.00023999,2]
[364106122,1749003042379,-625.61,0.00023999,2]
[364106123,1749003042389,-625.61,0.00023999,2]
[364106124,1749003042397,-625.61,0.00023999,2]
[364106125,1749003042407,-625.61,0.00023999,2]
[364106126,1749003042416,-625.8481188,0.00023999,2]
[364106127,1749003042426,-206171.28397677,0.00024,2]
[364106128,1749003042442,-615.05167411,0.00024,2]
[364106216,1749003104573,426.62,0.00024657,120]
[364106220,1749003171893,1079.0,0.00024658,120]
[364106222,1749003203275,273.0,0.00024127,120]
[364106225,1749003277686,1000.0,0.00024127,120]
[364106226,1749003284852,1000.0,0.00024127,120]
[364106227,1749003292046,500.0,0.00024127,120]
[364106228,1749003311575,995.0,0.00024127,120]
[364106229,1749003392985,258.905775,0.00013699,2]
[364106239,1749004015799,2170.71775471,0.0001551,2]
[364106250,1749004119755,1104.12487418,0.00024137,120]
[364106251,1749004123527,487.9402149,0.00024137,120]
[364106324,1749004232221,-3874.0691229,0.00015849,2]
[364106325,1749004232231,-300.0,0.00016437,2]
[364106326,1749004232240,-300.0,0.00016437,2]
[364106327,1749004232249,-589.83749731,0.00016438,2]
[364106328,1749004232258,-440.0,0.00016438,2]
[364106329,1749004232269,-440.0,0.00016438,2]
[364106330,1749004232278,-440.0,0.00016438,2]
[364106331,1749004232287,-440.0,0.00016438,2]
[364106332,1749004232297,-440.0,0.00016438,2]
[364106334,1749004232306,-583.18651259,0.00016438,2]
[364106335,1749004232315,-440.0,0.00016438,2]
[364106336,1749004232325,-440.0,0.00016438,2]
[364106337,1749004232334,-440.0,0.00016438,2]
[364106338,1749004232343,-440.0,0.00016438,2]
[364106339,1749004232353,-1167.63,0.00016438,2]
[364106340,1749004232362,-440.0,0.00016438,2]
[364106341,1749004232373,-440.0,0.00016438,2]
[364106342,1749004232383,-440.0,0.00016438,2]
[364106343,1749004232392,-462.41134897,0.00016438,2]
[364106344,1749004232401,-440.0,0.00016438,2]
[364106345,1749004232411,-440.0,0.00016438,2]
[364106346,1749004232420,-440.0,0.00016438,2]
[364106347,1749004232430,-440.0,0.00016438,2]
[364106348,1749004232439,-440.0,0.00016438,2]
[364106349,1749004232449,-440.0,0.00016438,2]
[364106350,1749004232458,-440.0,0.00016438,2]
[364106352,1749004232468,-440.0,0.00016438,2]
[364106355,1749004232477,-440.0,0.00016438,2]
[364106358,1749004232487,-440.0,0.0001671,2]
[364106361,1749004232496,-238.51503203,0.00016711,2]
[364106364,1749004232506,-440.0,0.00016711,2]
[364106367,1749004232516,-440.0,0.00016711,2]
[364106370,1749004232526,-440.0,0.00016711,2]
[364106372,1749004232535,-464.54522729,0.00016711,2]
[364106373,1749004232545,-535.94,0.00016711,2]
[364106375,1749004232554,-440.0,0.00016711,2]
[364106377,1749004232564,-534.61,0.00016711,2]
[364106379,1749004232574,-440.0,0.00016711,2]
[364106380,1749004232583,-440.0,0.00016711,2]
[364106381,1749004232592,-500.0,0.00016711,2]
[364106382,1749004232602,-440.0,0.00016711,2]
[364106383,1749004232612,-440.0,0.00016711,2]
[364106384,1749004232621,-440.0,0.00016711,2]
[364106385,1749004232630,-440.0,0.00016711,2]
[364106386,1749004232639,-440.0,0.00016711,2]
[364106387,1749004232650,-440.0,0.00016711,2]
[364106388,1749004232659,-440.0,0.00016711,2]
[364106389,1749004232668,-440.0,0.00016711,2]
[364106390,1749004232678,-440.0,0.00016711,2]
[364106391,1749004232688,-440.0,0.00016711,2]
[364106392,1749004232697,-440.0,0.00016711,2]
[364106393,1749004232707,-440.0,0.00016711,2]
[364106394,1749004232718,-440.0,0.00016711,2]
[364106395,1749004232727,-440.0,0.00016711,2]
[364106396,1749004232737,-440.0,0.00016711,2]
[364106397,1749004232747,-321.49259089,0.00016711,2]
[364106398,1749004232757,-440.0,0.00016711,2]
[364106399,1749004232772,-440.0,0.00016711,2]
[364106400,1749004232782,-527.01,0.00016711,2]
[364106401,1749004232793,-440.0,0.00016711,2]
[364106402,1749004232803,-440.0,0.00016711,2]
[364106403,1749004232813,-440.0,0.00016711,2]
[364106404,1749004232826,-440.0,0.00016711,2]
[364106405,1749004232835,-440.0,0.00016711,2]
[364106406,1749004232849,-440.0,0.00016711,2]
[364106407,1749004232867,-440.0,0.00016711,2]
[364106408,1749004232876,-440.0,0.00016711,2]
[364106409,1749004232886,-440.0,0.00016711,2]
[364106410,1749004232896,-440.0,0.00016711,2]
[364106411,1749004232906,-440.0,0.00016712,2]
[364106412,1749004232915,-440.0,0.00016712,2]
[364106413,1749004232925,-440.0,0.00016712,2]
[364106414,1749004232935,-440.0,0.00016712,2]
[364106415,1749004232945,-440.0,0.00016712,2]
[364106416,1749004232954,-440.0,0.00016712,2]
[364106417,1749004232964,-440.0,0.00016712,2]
[364106418,1749004232974,-440.0,0.00016712,2]
[364106419,1749004232984,-450.77794868,0.00016712,2]
[364106420,1749004232993,-1167.63,0.00016712,2]
[364106421,1749004233003,-440.0,0.00016712,2]
[364106422,1749004233013,-440.0,0.00016712,2]
[364106423,1749004233023,-440.0,0.00016712,2]
[364106424,1749004233033,-440.0,0.00016712,2]
[364106425,1749004233042,-440.0,0.00016712,2]
[364106426,1749004233052,-440.0,0.00016712,2]
[364106427,1749004233061,-440.0,0.00016712,2]
[364106428,1749004233070,-440.0,0.00016712,2]
[364106429,1749004233080,-440.0,0.00016712,2]
[364106430,1749004233089,-440.0,0.00016712,2]
[364106431,1749004233099,-440.0,0.00016712,2]
[364106432,1749004233109,-440.0,0.00016712,2]
[364106433,1749004233119,-440.0,0.00016984,2]
[364106434,1749004233128,-500.0,0.00016984,2]
[364106435,1749004233138,-461.27492887,0.00016984,2]
[364106436,1749004233148,-500.0,0.00016984,2]
[364106437,1749004233158,-500.0,0.00016984,2]
[364106438,1749004233168,-184.50379944,0.00016984,2]
[364106439,1749004233178,-203.78960511,0.00016985,2]
[364106440,1749004233188,-440.0,0.00016985,2]
[364106441,1749004233198,-440.0,0.00016985,2]
[364106442,1749004233207,-535.94,0.00016985,2]
[364106443,1749004233217,-436.49685936,0.00016985,2]
[364106444,1749004233226,-534.61,0.00016985,2]
[364106445,1749004233235,-440.0,0.00016985,2]
[364106446,1749004233245,-440.0,0.00016985,2]
[364106447,1749004233255,-440.0,0.00016985,2]
[364106448,1749004233266,-440.0,0.00016985,2]
[364106449,1749004233275,-440.0,0.00016985,2]
[364106450,1749004233285,-440.0,0.00016985,2]
[364106451,1749004233295,-440.0,0.00016985,2]
[364106452,1749004233305,-440.0,0.00016985,2]
[364106453,1749004233314,-440.0,0.00016985,2]
[364106454,1749004233323,-440.0,0.00016985,2]
[364106455,1749004233333,-440.0,0.00016985,2]
[364106456,1749004233342,-440.0,0.00016985,2]
[364106457,1749004233352,-440.0,0.00016985,2]
[364106458,1749004233361,-440.0,0.00016985,2]
[364106459,1749004233371,-440.0,0.00016985,2]
[364106460,1749004233381,-440.0,0.00016985,2]
[364106461,1749004233391,-440.0,0.00016985,2]
[364106462,1749004233400,-440.0,0.00016985,2]
[364106463,1749004233410,-440.0,0.00016985,2]
[364106464,1749004233419,-378.79957047,0.00016985,2]
[364106465,1749004233428,-440.0,0.00016985,2]
[364106466,1749004233438,-440.0,0.00016985,2]
[364106467,1749004233447,-440.0,0.00016985,2]
[364106468,1749004233457,-377.54717386,0.00016985,2]
[364106469,1749004233467,-440.0,0.00016985,2]
[364106470,1749004233476,-440.0,0.00016985,2]
[364106471,1749004233486,-440.0,0.00016985,2]
[364106472,1749004233495,-440.0,0.00016985,2]
[364106473,1749004233505,-440.0,0.00016985,2]
[364106474,1749004233514,-440.0,0.00016986,2]
[364106475,1749004233523,-440.0,0.00016986,2]
[364106476,1749004233533,-440.0,0.00016986,2]
[364106477,1749004233543,-440.0,0.00016986,2]
[364106478,1749004233552,-440.0,0.00016986,2]
[364106479,1749004233562,-440.0,0.00016986,2]
[364106480,1749004233573,-440.0,0.00016986,2]
[364106481,1749004233582,-440.0,0.00016986,2]
[364106482,1749004233592,-1167.63,0.00016986,2]
[364106483,1749004233603,-440.0,0.00016986,2]
[364106484,1749004233612,-440.0,0.00016986,2]
[364106485,1749004233622,-440.0,0.00016986,2]
[364106486,1749004233631,-440.0,0.00016986,2]
[364106487,1749004233641,-440.0,0.00016986,2]
[364106488,1749004233651,-440.0,0.00016986,2]
[364106489,1749004233660,-445.02378143,0.00016986,2]
[364106490,1749004233670,-440.0,0.00016986,2]
[364106491,1749004233679,-440.0,0.00016986,2]
[364106492,1749004233689,-440.0,0.00016986,2]
[364106493,1749004233698,-440.0,0.00016986,2]
[364106494,1749004233707,-440.0,0.00016986,2]
[364106495,1749004233717,-440.0,0.00017238,2]
[364106496,1749004233727,-395.7376369,0.00017238,2]
[364106497,1749004233736,-442.12217588,0.00017238,2]
[364106498,1749004233746,-500.0,0.00017238,2]
[364106499,1749004233755,-440.0,0.00017238,2]
[364106500,1749004233767,-440.0,0.00017238,2]
[364106501,1749004233776,-440.0,0.00017238,2]
[364106502,1749004233786,-440.0,0.00017238,2]
[364106503,1749004233795,-500.0,0.00017238,2]
[364106504,1749004233805,-440.0,0.00017238,2]
[364106505,1749004233815,-440.0,0.00017238,2]
[364106506,1749004233828,-440.0,0.00017238,2]
[364106507,1749004233838,-440.0,0.00017238,2]
[364106508,1749004233847,-450.55751368,0.00017238,2]
[364106509,1749004233857,-440.0,0.00017238,2]
[364106510,1749004233867,-440.0,0.00017238,2]
[364106511,1749004233877,-440.0,0.00017238,2]
[364106512,1749004233887,-440.0,0.00017238,2]
[364106513,1749004233898,-440.0,0.00017238,2]
[364106514,1749004233908,-440.0,0.00017238,2]
[364106515,1749004233918,-440.0,0.00017238,2]
[364106516,1749004233928,-440.0,0.00017239,2]
[364106517,1749004233937,-456.8858754,0.00017239,2]
[364106518,1749004233947,-447.58567627,0.00017239,2]
[364106519,1749004233957,-243.92775418,0.00017239,2]
[364106520,1749004233967,-440.0,0.00017239,2]
[364106521,1749004233977,-440.0,0.0001724,2]
[364106522,1749004233988,-430.0,0.0001724,2]
[364106523,1749004233998,-450.65217,0.0001724,2]
[364106524,1749004234008,-440.0,0.0001724,2]
[364106525,1749004234018,-336.93011202,0.0001724,2]
[364106526,1749004234028,-440.0,0.0001724,2]
[364106527,1749004234038,-336.14310242,0.0001724,2]
[364106528,1749004234047,-440.0,0.00017258,2]
[364106529,1749004234057,-461.23797068,0.00017259,2]
[364106530,1749004234067,-440.0,0.00017259,2]
[364106531,1749004234077,-535.94,0.00017259,2]
[364106532,1749004234087,-534.61,0.00017259,2]
[364106533,1749004234097,-440.0,0.00017259,2]
[364106534,1749004234107,-440.0,0.00017259,2]
[364106535,1749004234117,-440.0,0.00017259,2]
[364106536,1749004234127,-440.0,0.00017259,2]
[364106537,1749004234137,-440.0,0.00017259,2]
[364106538,1749004234146,-456.82971603,0.00017259,2]
[364106539,1749004234156,-440.0,0.00017259,2]
[364106540,1749004234166,-440.0,0.00017259,2]
[364106541,1749004234176,-440.0,0.00017259,2]
[364106542,1749004234186,-440.0,0.00017259,2]
[364106543,1749004234196,-440.0,0.00017259,2]
[364106544,1749004234318,-180.47155005,0.00017259,2]
[364106545,1749004234328,-440.0,0.00017259,2]
[364106546,1749004234338,-440.0,0.00017259,2]
[364106547,1749004234347,-440.0,0.00017259,2]
[364106548,1749004234357,-440.0,0.00017259,2]
[364106549,1749004234367,-440.0,0.00017259,2]
[364106550,1749004234377,-440.0,0.00017259,2]
[364106551,1749004234387,-440.0,0.00017259,2]
[364106552,1749004234397,-440.0,0.00017259,2]
[364106553,1749004234407,-440.0,0.00017259,2]
[364106554,1749004234416,-440.0,0.00017259,2]
[364106555,1749004234426,-440.0,0.00017259,2]
[364106556,1749004234436,-423.42447598,0.00017259,2]
[364106557,1749004234446,-440.0,0.00017259,2]
[364106558,1749004234456,-440.0,0.00017259,2]
[364106559,1749004234466,-440.0,0.00017259,2]
[364106560,1749004234476,-440.0,0.0001726,2]
[364106561,1749004234487,-440.0,0.0001726,2]
[364106562,1749004234498,-435.74435429,0.0001726,2]
[364106563,1749004234508,-440.0,0.0001726,2]
[364106564,1749004234519,-440.0,0.0001726,2]
[364106565,1749004234530,-440.0,0.0001726,2]
[364106566,1749004234540,-440.0,0.0001726,2]
[364106567,1749004234550,-440.0,0.0001726,2]
[364106568,1749004234560,-1167.63,0.0001726,2]
[364106569,1749004234570,-440.0,0.0001726,2]
[364106570,1749004234579,-440.0,0.0001726,2]
[364106571,1749004234589,-440.0,0.0001726,2]
[364106572,1749004234598,-440.0,0.0001726,2]
[364106573,1749004234608,-440.0,0.0001726,2]
[364106574,1749004234617,-440.0,0.0001726,2]
[364106575,1749004234627,-440.0,0.0001726,2]
[364106576,1749004234636,-440.0,0.0001726,2]
[364106577,1749004234646,-440.0,0.0001726,2]
[364106578,1749004234656,-440.0,0.0001726,2]
[364106579,1749004234666,-440.0,0.0001726,2]
[364106580,1749004234676,-500.0,0.00017511,2]
[364106581,1749004234685,-440.0,0.00017512,2]
[364106582,1749004234695,-440.0,0.00017512,2]
[364106583,1749004234705,-440.0,0.00017512,2]
[364106584,1749004234714,-440.0,0.00017512,2]
[364106585,1749004234723,-440.0,0.00017512,2]
[364106586,1749004234733,-440.0,0.00017512,2]
[364106587,1749004234742,-440.0,0.00017512,2]
[364106588,1749004234751,-440.0,0.00017512,2]
[364106589,1749004234761,-440.0,0.00017512,2]
[364106590,1749004234771,-440.0,0.00017512,2]
[364106591,1749004234780,-420.0,0.00017512,2]
[364106592,1749004234789,-440.0,0.00017512,2]
[364106593,1749004234799,-440.0,0.00017512,2]